fUSD/lending_fUSD_20260526
["ID","MTS","AMOUNT","RATE_DAILY","PERIOD"]
[423044682,1779792657000,-20853.30546393,0.0003951,2]
[423044690,1779792657000,-2229.14898936,0.0003951,2]
[423044692,1779792657000,-472.17069627,0.0003951,2]
[423044695,1779792657000,-610.0,0.0003951,2]
[423044693,1779792657000,-150.0,0.0003951,2]
[423044701,1779792657000,-9496.08,0.0003951,30]
[423044691,1779792657000,-898.16110061,0.0003951,2]
[423044694,1779792657000,-4920.23335371,0.0003951,2]
[423044696,1779792657000,-12988.65113404,0.0003951,2]
[423044697,1779792657000,-3733.15204268,0.0003951,30]
[423044698,1779792657000,-363.2608716,0.0003951,2]
[423044699,1779792657000,-518.89254625,0.0003951,2]
[423044743,1779792658000,-207.33,0.00027885,2]
[423044745,1779792658000,-171.46,0.0002795,30]
[423044741,1779792658000,-171.46,0.00027771,7]
[423044739,1779792658000,-207.33,0.00027726,7]
[423044746,1779792658000,-740.65,0.00028044,30]
[423044753,1779792658000,-195.26024,0.0003951,30]
[423044759,1779792658000,-646.41787225,0.00028046,30]
[423044750,1779792658000,-300.0,0.00035568,2]
[423044756,1779792658000,-2307.35153135,0.0003951,30]
[423044752,1779792658000,-195.26024,0.000395,30]
[423044748,1779792658000,-171.49,0.0002813,2]
[423044751,1779792658000,-195.26024,0.000388,30]
[423044742,1779792658000,-740.65,0.00027885,2]
[423044729,1779792658000,-171.47,0.00024658,2]
[423044744,1779792658000,-844.15,0.00027887,2]
[423044747,1779792658000,-207.33,0.00028044,30]
[423044738,1779792658000,-740.65,0.00027726,7]
[423044737,1779792658000,-171.46,0.00027592,2]
[423044732,1779792658000,-1870.07866995,0.00026848,2]
[423044736,1779792658000,-844.15,0.0002757,30]
[423044734,1779792658000,-740.65,0.00027567,30]
[423044735,1779792658000,-207.33,0.00027567,30]
[423044733,1779792658000,-4847.7286107,0.00027397,10]
[423044731,1779792658000,-770.22503084,0.00027397,10]
[423044730,1779792658000,-2604.49635846,0.00027397,10]
[423044755,1779792658000,-4152.92700835,0.0003951,30]
[423044749,1779792658000,-553.0,0.00029,10]
[423044754,1779792658000,-180.0,0.0003951,120]
[423044740,1779792658000,-844.15,0.00027728,7]
[423044757,1779792658000,-1235.98186824,0.0003951,30]
[423044758,1779792658000,-1308.81645654,0.0003951,30]
[423044787,1779792658000,-2147.57457912,0.0003951,30]
[423044780,1779792658000,-844.15,0.00028682,7]
[423044783,1779792658000,-250.0,0.0003951,30]
[423044785,1779792658000,-195.26024,0.000388,30]
[423044779,1779792658000,-207.33,0.00028681,7]
[423044782,1779792658000,-1220.52685329,0.0003951,30]
[423044777,1779792658000,-300.0,0.00035568,2]
[423044781,1779792658000,-90.47986912,0.0003951,30]
[423044786,1779792658000,-786.81901712,0.0003951,30]
[423044776,1779792658000,-415.0,0.00029734,10]
[423044778,1779792658000,-4547.7494334,0.0003951,30]
[423044772,1779792658000,-740.65,0.00028522,30]
[423044775,1779792658000,-740.65,0.00028681,7]
[423044784,1779792658000,-343.10411232,0.0003951,30]
[423044773,1779792658000,-207.33,0.00028522,30]
[423044760,1779792658000,-197.73212775,0.00028046,30]
[423044770,1779792658000,-207.33,0.00028363,2]
[423044762,1779792658000,-207.33,0.00028203,7]
[423044761,1779792658000,-740.65,0.00028203,7]
[423044764,1779792658000,-171.47,0.00025526,7]
[423044765,1779792658000,-158.53,0.00028205,7]
[423044763,1779792658000,-205.69481741,0.0003951,30]
[423044767,1779792658000,-263.37511889,0.00028363,2]
[423044768,1779792658000,-931.0,0.00028168,2]
[423044769,1779792658000,-477.27488111,0.00028363,2]
[423044774,1779792658000,-844.15,0.00028523,30]
[423044771,1779792658000,-844.15,0.00028364,2]
[423044766,1779792658000,-685.62,0.00028205,7]
[423044803,1779792659000,-926.052,0.00031168,2]
[423044797,1779792659000,-740.65,0.0002884,2]
[423044801,1779792659000,-501.0,0.00029986,7]
[423044800,1779792659000,-501.0,0.00029005,6]
[423044799,1779792659000,-844.15,0.00028841,2]
[423044798,1779792659000,-207.33,0.0002884,2]
[423044796,1779792659000,-501.0,0.00028024,5]
[423044788,1779792659000,-501.0,0.00025082,2]
[423044795,1779792659000,-267.00237751,0.0002747,2]
[423044793,1779792659000,-101.02168861,0.00027044,4]
[423044790,1779792659000,-226.08222788,0.00026063,3]
[423044792,1779792659000,-289.11375,0.00027044,4]
[423044789,1779792659000,-274.91777212,0.00026063,3]
[423044804,1779792659000,-501.0,0.00031947,9]
[423044794,1779792659000,-1603.07629244,0.0002747,2]
[423044809,1779792659000,-300.0,0.00035568,2]
[423044791,1779792659000,-110.86456139,0.00027044,4]
[423044802,1779792659000,-501.0,0.00030966,8]
[423044822,1779792659000,-2895.61093482,0.0003951,30]
[423044821,1779792659000,-300.0,0.00035568,2]
[423044820,1779792659000,-12974.00099734,0.0003951,30]
[423044819,1779792659000,-600.8,0.0003951,120]
[423044815,1779792659000,-195.26024,0.000395,30]
[423044818,1779792659000,-600.8,0.0003951,120]
[423044816,1779792659000,-195.26024,0.0003951,30]
[423044817,1779792659000,-29385.12797782,0.0003951,30]
[423044811,1779792659000,-501.0,0.0003587,13]
[423044810,1779792659000,-300.0,0.00035568,2]
[423044812,1779792659000,-501.0,0.0003685,14]
[423044807,1779792659000,-501.0,0.00034889,12]
[423044806,1779792659000,-501.0,0.00033908,11]
[423044813,1779792659000,-501.0,0.00037831,15]
[423044808,1779792659000,-300.0,0.00035568,2]
[423044814,1779792659000,-501.0,0.00038812,16]
[423044805,1779792659000,-501.0,0.00032928,10]
[423044825,1779792662000,929.462668,0.00027911,120]
[423044824,1779792662000,2500.0,0.00026244,120]
[423044823,1779792662000,2500.0,0.00027389,120]
[423044826,1779792795000,159.93,0.00028046,120]
[423044833,1779793162000,-150.0,0.00012858,2]
[423044834,1779793169000,-4.44,0.00012858,2]
[423044843,1779793802000,145.56,0.0001058,2]
[423044844,1779793802000,16.35,0.0001058,2]
[423044858,1779793831000,-803.40334962,0.00013952,2]
[423044856,1779793831000,-258.00000003,0.000139,2]
[423044857,1779793831000,-255.21420238,0.000139,2]
[423044855,1779793831000,-574.81083747,0.000139,2]
[423044878,1779793832000,-1200.0,0.00019898,2]
[423044881,1779793832000,-151.0,0.0002,2]
[423044883,1779793832000,-251.0,0.0002,2]
[423044880,1779793832000,-300.0,0.00019999,2]
[423044882,1779793832000,-388.0,0.0002,2]
[423044885,1779793832000,-213.0,0.0002,2]
[423044888,1779793832000,-154.44,0.00020573,2]
[423044884,1779793832000,-429.0,0.0002,2]
[423044893,1779793832000,-18023.04796745,0.000209,2]
[423044887,1779793832000,-231.3,0.00020381,2]
[423044889,1779793832000,-500.0,0.00020646,2]
[423044890,1779793832000,-1163.56769754,0.00020899,2]
[423044891,1779793832000,-4963.57984747,0.000209,2]
[423044894,1779793832000,-158.67,0.00020999,2]
[423044892,1779793832000,-10207.75148508,0.000209,2]
[423044895,1779793832000,-151.0,0.00021,2]
[423044898,1779793832000,-429.0,0.00021,2]
[423044886,1779793832000,-1163.56769754,0.00020328,2]
[423044879,1779793832000,-1144.316888,0.000199,2]
[423044863,1779793832000,-280.38333782,0.00014052,2]
[423044874,1779793832000,-231.3,0.0001841,2]
[423044897,1779793832000,-251.0,0.00021,2]
[423044860,1779793832000,-250.0,0.00013976,2]
[423044861,1779793832000,-250.0,0.00014,2]
[423044859,1779793832000,-133.19043219,0.00013952,2]
[423044862,1779793832000,-150.0,0.00014044,2]
[423044864,1779793832000,-19.61666218,0.00014052,2]
[423044867,1779793832000,-250.0,0.00015347,2]
[423044865,1779793832000,-197.34232616,0.00014075,2]
[423044876,1779793832000,-154.44,0.00019287,2]
[423044869,1779793832000,-300.0,0.00015448,2]
[423044868,1779793832000,-154.44,0.00015429,2]
[423044866,1779793832000,-154.44,0.00014144,2]
[423044871,1779793832000,-231.3,0.00016438,2]
[423044870,1779793832000,-161.91,0.0001587,2]
[423044877,1779793832000,-1163.56769754,0.00019758,2]
[423044875,1779793832000,-1163.56769756,0.00019187,2]
[423044873,1779793832000,-154.44,0.00018001,2]
[423044872,1779793832000,-154.44,0.00016715,2]
[423044896,1779793832000,-388.0,0.00021,2]
[423044934,1779793832000,-2171.88466431,0.00022001,2]
[423044899,1779793832000,-213.0,0.00021,2]
[423044928,1779793832000,-770.68,0.00022001,2]
[423044929,1779793832000,-727.07592786,0.00022001,2]
[423044932,1779793832000,-5000.0,0.00022001,2]
[423044933,1779793832000,-2828.11533569,0.00022001,2]
[423044943,1779793832000,-154.44,0.00023144,2]
[423044935,1779793832000,-231.3,0.00022353,2]
[423044947,1779793832000,-388.8323745,0.00023368,2]
[423044942,1779793832000,-213.0,0.00023,2]
[423044937,1779793832000,-900.0,0.00022857,7]
[423044938,1779793832000,-166.0,0.00023,2]
[423044936,1779793832000,-2250.0,0.00022857,2]
[423044939,1779793832000,-388.0,0.00023,2]
[423044941,1779793832000,-429.0,0.00023,2]
[423044945,1779793832000,-5963.33691747,0.00023368,2]
[423044944,1779793832000,-12590.8313003,0.00023368,2]
[423044946,1779793832000,-458.44747329,0.00023368,2]
[423044900,1779793832000,-206.95,0.00021021,2]
[423044924,1779793832000,-429.0,0.00022,2]
[423044926,1779793832000,-5000.0,0.00022001,2]
[423044940,1779793832000,-251.0,0.00023,2]
[423044927,1779793832000,-1851.81657312,0.00022001,2]
[423044925,1779793832000,-213.0,0.00022,2]
[423044912,1779793832000,-420.0,0.00021777,2]
[423044902,1779793832000,-240.45,0.00021155,2]
[423044901,1779793832000,-150.0,0.00021111,2]
[423044904,1779793832000,-200.0,0.00021205,2]
[423044903,1779793832000,-161.91,0.0002116,2]
[423044916,1779793832000,-500.0,0.000219,2]
[423044917,1779793832000,-5000.0,0.00021918,2]
[423044906,1779793832000,-10833.29,0.000214,2]
[423044914,1779793832000,-154.44,0.00021858,2]
[423044907,1779793832000,-167.09,0.00021744,2]
[423044909,1779793832000,-499.0,0.00021773,2]
[423044920,1779793832000,-889.52,0.00021918,2]
[423044930,1779793832000,-1650.42749902,0.00022001,2]
[423044931,1779793832000,-5000.0,0.00022001,2]
[423044922,1779793832000,-388.0,0.00022,2]
[423044921,1779793832000,-151.0,0.00022,2]
[423044905,1779793832000,-7501.83,0.00021273,2]
[423044923,1779793832000,-251.0,0.00022,2]
[423044966,1779793838000,-500.0,0.00024073,2]
[423044970,1779793838000,-500.0,0.00024073,2]
[423044972,1779793838000,-500.0,0.00024073,2]
[423044967,1779793838000,-500.0,0.00024073,2]
[423044968,1779793838000,-500.0,0.00024073,2]
[423044974,1779793838000,-500.0,0.00024073,2]
[423044969,1779793838000,-439.83370108,0.00024073,2]
[423044973,1779793838000,-500.0,0.00024073,2]
[423044984,1779793838000,-500.0,0.00024073,2]
[423044965,1779793838000,-500.0,0.00024073,2]
[423044980,1779793838000,-500.0,0.00024073,2]
[423044962,1779793838000,-660.0,0.00024,2]
[423044963,1779793838000,-503.63901513,0.00024073,2]
[423044955,1779793838000,-108.3072081,0.00023865,7]
[423044961,1779793838000,-213.0,0.00024,2]
[423044960,1779793838000,-429.0,0.00024,2]
[423044958,1779793838000,-388.0,0.00024,2]
[423044957,1779793838000,-191.94544244,0.00023882,7]
[423044956,1779793838000,-83.63823434,0.00023865,7]
[423044959,1779793838000,-251.0,0.00024,2]
[423044953,1779793838000,-300.0,0.00023712,2]
[423044952,1779793838000,-8790.12,0.00023368,2]
[423044954,1779793838000,-191.94544244,0.00023845,7]
[423044951,1779793838000,-8426.39193444,0.00023368,2]
[423044950,1779793838000,-7733.2146,0.000208,2]
[423044977,1779793838000,-500.0,0.00024073,2]
[423044964,1779793838000,-500.0,0.00024073,2]
[423044975,1779793838000,-500.0,0.00024073,2]
[423044971,1779793838000,-500.0,0.00024073,2]
[423044978,1779793838000,-500.0,0.00024073,2]
[423044976,1779793838000,-500.0,0.00024073,2]
[423045008,1779793838000,-170.73,0.00024658,2]
[423045005,1779793838000,-154.44,0.0002443,2]
[423045002,1779793838000,-40716.6100301,0.00024074,2]
[423045007,1779793838000,-287.46,0.00024658,2]
[423045006,1779793838000,-1000.0,0.00024658,2]
[423045001,1779793838000,-887.84013971,0.00024074,2]
[423045003,1779793838000,-351.35654952,0.00024074,2]
[423044998,1779793838000,-500.0,0.00024073,2]
[423044999,1779793838000,-500.0,0.00024073,2]
[423045000,1779793838000,-57599.57743019,0.00024074,2]
[423044997,1779793838000,-500.0,0.00024073,2]
[423044990,1779793838000,-500.0,0.00024073,2]
[423044993,1779793838000,-500.0,0.00024073,2]
[423045004,1779793838000,-231.3,0.00024324,2]
[423044995,1779793838000,-500.0,0.00024073,2]
[423044991,1779793838000,-500.0,0.00024073,2]
[423044981,1779793838000,-500.0,0.00024073,2]
[423044982,1779793838000,-500.0,0.00024073,2]
[423044983,1779793838000,-500.0,0.00024073,2]
[423044986,1779793838000,-500.0,0.00024073,2]
[423044994,1779793838000,-500.0,0.00024073,2]
[423044979,1779793838000,-500.0,0.00024073,2]
[423044985,1779793838000,-500.0,0.00024073,2]
[423044988,1779793838000,-500.0,0.00024073,2]
[423044987,1779793838000,-500.0,0.00024073,2]
[423044989,1779793838000,-500.0,0.00024073,2]
[423044992,1779793838000,-426.8228442,0.00024073,2]
[423044996,1779793838000,-500.0,0.00024073,2]
[423045069,1779793839000,-500.0,0.00025699,2]
[423045072,1779793839000,-295.06,0.00025699,2]
[423045067,1779793839000,-500.0,0.00025699,2]
[423045077,1779793839000,-154.44,0.00025716,2]
[423045066,1779793839000,-500.0,0.00025699,2]
[423045068,1779793839000,-500.0,0.00025699,2]
[423045050,1779793839000,-500.0,0.00025699,2]
[423045056,1779793839000,-500.0,0.00025699,2]
[423045048,1779793839000,-502.47500219,0.00025699,2]
[423045070,1779793839000,-500.0,0.00025699,2]
[423045071,1779793839000,-500.0,0.00025699,2]
[423045064,1779793839000,-389.74671532,0.00025699,2]
[423045089,1779793839000,-10833.29,0.000269,2]
[423045074,1779793839000,-500.0,0.00025699,2]
[423045075,1779793839000,-500.0,0.00025699,2]
[423045078,1779793839000,-351.35654949,0.00025721,2]
[423045080,1779793839000,-161.32,0.00025764,2]
[423045079,1779793839000,-171.21,0.00025743,7]
[423045090,1779793839000,-215.42269777,0.00027,3]
[423045081,1779793839000,-7501.83,0.00025786,2]
[423045082,1779793839000,-170.73,0.00026105,30]
[423045083,1779793839000,-231.3,0.00026296,2]
[423045086,1779793839000,-166.83,0.00026472,2]
[423045065,1779793839000,-500.0,0.00025699,2]
[423045088,1779793839000,-171.21,0.00026829,30]
[423045073,1779793839000,-500.0,0.00025699,2]
[423045052,1779793839000,-500.0,0.00025699,2]
[423045028,1779793839000,-1000.0,0.000256,2]
[423045063,1779793839000,-500.0,0.00025699,2]
[423045087,1779793839000,-500.0,0.00026575,2]
[423045019,1779793839000,-170.73,0.00025381,7]
[423045009,1779793839000,-171.21,0.00024658,2]
[423045010,1779793839000,-166.91,0.0002476,30]
[423045014,1779793839000,-433.0,0.00025,2]
[423045012,1779793839000,-403.0,0.00025,2]
[423045016,1779793839000,-504.0,0.00025082,2]
[423045013,1779793839000,-255.0,0.00025,2]
[423045017,1779793839000,-10833.29,0.000252,2]
[423045011,1779793839000,-500.0,0.00024996,2]
[423045015,1779793839000,-214.0,0.00025,2]
[423045024,1779793839000,-500.0,0.00025599,2]
[423045026,1779793839000,-500.0,0.00025599,2]
[423045030,1779793839000,-500.0,0.00025699,2]
[423045022,1779793839000,-500.0,0.00025599,2]
[423045034,1779793839000,-500.0,0.00025699,2]
[423045040,1779793839000,-500.0,0.00025699,2]
[423045032,1779793839000,-500.0,0.00025699,2]
[423045038,1779793839000,-625.7470238,0.00025699,2]
[423045036,1779793839000,-500.0,0.00025699,2]
[423045042,1779793839000,-500.0,0.00025699,2]
[423045044,1779793839000,-500.0,0.00025699,2]
[423045059,1779793839000,-500.0,0.00025699,2]
[423045061,1779793839000,-500.0,0.00025699,2]
[423045046,1779793839000,-500.0,0.00025699,2]
[423045055,1779793839000,-500.0,0.00025699,2]
[423045084,1779793839000,-504.0,0.00026359,3]
[423045076,1779793839000,-481.6,0.00025699,2]
[423045091,1779793839000,-161.32,0.00027052,2]
[423045121,1779793839000,-164.99,0.00027874,2]
[423045124,1779793839000,-448.19,0.00027876,2]
[423045120,1779793839000,-190.24,0.00027844,7]
[423045125,1779793839000,-1600.0,0.000279,10]
[423045122,1779793839000,-165.61,0.00027874,2]
[423045126,1779793839000,-161.88,0.00027914,7]
[423045128,1779793839000,-159.34,0.00027987,2]
[423045127,1779793839000,-161.95,0.00027914,7]
[423045129,1779793839000,-164.99,0.00028035,30]
[423045130,1779793839000,-165.61,0.00028035,30]
[423045131,1779793839000,-448.19,0.00028036,30]
[423045133,1779793839000,-2500.0,0.00028103,2]
[423045123,1779793839000,-441.93,0.00027875,2]
[423045137,1779793839000,-441.93,0.00028196,7]
[423045132,1779793839000,-441.93,0.00028036,30]
[423045136,1779793839000,-164.99,0.00028196,7]
[423045138,1779793839000,-165.61,0.00028196,7]
[423045140,1779793839000,-11551.43,0.00028203,2]
[423045141,1779793839000,-3636.0,0.00028238,2]
[423045142,1779793839000,-6062.0,0.00028238,2]
[423045144,1779793839000,-169.68634397,0.00028241,2]
[423045143,1779793839000,-155.76785627,0.00028241,2]
[423045145,1779793839000,-231.3,0.00028267,2]
[423045139,1779793839000,-448.19,0.00028197,7]
[423045146,1779793839000,-161.88,0.00028276,2]
[423045085,1779793839000,-161.32,0.00026408,2]
[423045135,1779793839000,-190.24,0.0002813,30]
[423045116,1779793839000,-448.19,0.00027715,7]
[423045134,1779793839000,-159.38,0.0002813,7]
[423045117,1779793839000,-1000.0,0.000278,10]
[423045095,1779793839000,-300.0,0.00027397,2]
[423045119,1779793839000,-159.34,0.00027844,30]
[423045093,1779793839000,-1500.0,0.00027397,2]
[423045101,1779793839000,-312.73709,0.00027476,14]
[423045100,1779793839000,-1682.1,0.00027397,2]
[423045098,1779793839000,-7106.25,0.00027397,10]
[423045099,1779793839000,-5921.87,0.00027397,10]
[423045096,1779793839000,-287.46,0.00027397,2]
[423045097,1779793839000,-8527.5,0.00027397,10]
[423045092,1779793839000,-351.35654949,0.00027369,2]
[423045102,1779793839000,-150.0,0.00027521,2]
[423045103,1779793839000,-164.99,0.00027553,30]
[423045147,1779793839000,-161.95,0.00028276,2]
[423045094,1779793839000,-1467.22,0.00027397,2]
[423045105,1779793839000,-161.95,0.00027553,30]
[423045115,1779793839000,-441.93,0.00027714,7]
[423045114,1779793839000,-165.61,0.00027713,7]
[423045112,1779793839000,-500.0,0.000277,10]
[423045111,1779793839000,-161.32,0.00027697,2]
[423045109,1779793839000,-190.24,0.00027558,2]
[423045113,1779793839000,-164.99,0.00027713,7]
[423045110,1779793839000,-504.0,0.00027637,4]
[423045104,1779793839000,-161.88,0.00027553,30]
[423045118,1779793839000,-697.0,0.00027809,10]
[423045107,1779793839000,-441.93,0.00027554,30]
[423045108,1779793839000,-448.19,0.00027555,30]
[423045106,1779793839000,-165.61,0.00027553,30]
[423045151,1779793840000,-1403172.20013333,0.000283,2]
[423045148,1779793840000,-161.54,0.00028277,2]
[423045149,1779793840000,-181.89219733,0.0002829,2]
[423045152,1779793840000,-166.91,0.00025629,30]
[423045150,1779793840000,-500.0,0.00028298,2]
[423045153,1779793840000,-71507.79419857,0.000283,2]
[423045156,1779793840000,-2912.49652858,0.00025599,2]
[423045158,1779793840000,-290.29006275,0.00025599,2]
[423045159,1779793840000,-166.91,0.00026497,30]
[423045162,1779793840000,-8483.74054618,0.000283,2]
[423045161,1779793840000,-349.0,0.00028103,10]
[423045160,1779793840000,-166.91,0.00027366,30]
[423045163,1779793840000,-775.54952,0.000283,2]
[423045157,1779793840000,-509.65562623,0.00025599,2]
[423045166,1779793841000,-172.35787225,0.00027554,30]
[423045165,1779793841000,-161.76,0.00027553,30]
[423045164,1779793841000,-165.58,0.00027553,30]
[423045196,1779793843000,-186.87,0.0002813,30]
[423045183,1779793843000,-168.18,0.00024658,2]
[423045186,1779793843000,-269.36212775,0.00027554,30]
[423045185,1779793843000,-1500.0,0.00027397,2]
[423045192,1779793843000,-441.72,0.00027875,2]
[423045197,1779793843000,-165.58,0.00028196,7]
[423045193,1779793843000,-161.76,0.00027914,7]
[423045187,1779793843000,-186.86,0.00027558,2]
[423045184,1779793843000,-168.18,0.00025743,7]
[423045191,1779793843000,-165.58,0.00027874,2]
[423045194,1779793843000,-165.58,0.00028035,30]
[423045189,1779793843000,-441.72,0.00027714,7]
[423045188,1779793843000,-165.58,0.00027713,7]
[423045190,1779793843000,-186.86,0.00027844,7]
[423045198,1779793843000,-441.72,0.00028196,7]
[423045200,1779793843000,-3432.96787225,0.000283,2]
[423045199,1779793843000,-161.76,0.00028276,2]
[423045195,1779793843000,-441.72,0.00028036,30]
[423045210,1779793848000,-2599.69467694,0.000283,2]
[423045212,1779793848000,-436.0,0.000283,10]
[423045211,1779793848000,-10028.05305273,0.000283,2]
[423045215,1779793848000,-441.72,0.00028357,2]
[423045213,1779793848000,-161.32,0.00028341,2]
[423045214,1779793848000,-165.58,0.00028356,2]
[423045217,1779793848000,-165.58,0.00028517,30]
[423045216,1779793848000,-185.40994519,0.00028461,2]
[423045219,1779793848000,-161.76,0.00028638,30]
[423045218,1779793848000,-441.72,0.00028518,30]
[423045223,1779793848000,-165.58,0.00028678,7]
[423045221,1779793848000,-215.42269777,0.00028667,2]
[423045220,1779793848000,-208.92835186,0.00028667,2]
[423045222,1779793848000,-441.72,0.00028678,7]
[423045229,1779793849000,-165.58,0.00028839,2]
[423045230,1779793849000,-504.0,0.00028914,6]
[423045228,1779793849000,-441.72,0.00028839,2]
[423045225,1779793849000,-322.15849939,0.000287,2]
[423045227,1779793849000,-10833.29,0.000287,2]
[423045224,1779793849000,-815.51678956,0.000287,2]
[423045226,1779793849000,-2504.07320561,0.000287,2]
[423045232,1779793849000,-175.1,0.00029,2]
[423045240,1779793849000,-161.79,0.00029,7]
[423045233,1779793849000,-815.51678956,0.00029,2]
[423045234,1779793849000,-322.15849939,0.00029,2]
[423045235,1779793849000,-2504.07320561,0.00029,2]
[423045236,1779793849000,-175.1,0.00029,2]
[423045239,1779793849000,-180.4,0.00029,2]
[423045241,1779793849000,-441.30562482,0.00029,30]
[423045238,1779793849000,-180.4,0.00029,2]
[423045237,1779793849000,-175.1,0.00029,2]
[423045231,1779793849000,-170.07957496,0.00028971,2]
[423045244,1779793863000,1541.19535233,0.00027459,120]
[423045250,1779794145000,256.59,0.00025769,120]
[423045253,1779794439000,55.0,9.8e-05,2]
[423045252,1779794439000,150.0,9.8e-05,2]
[423045258,1779794515000,1574.85122463,0.0001,2]
[423045257,1779794515000,150.0,0.0001,2]
[423045256,1779794515000,133.65,0.0001,2]
[423045255,1779794515000,95.0,0.0001,2]
[423045259,1779794528000,1587.80858204,0.0001,2]
[423045262,1779794539000,3341.81682886,0.0001,2]
[423045263,1779794539000,1759.3314149,0.0001,2]
[423045261,1779794539000,26.86702219,0.0001,2]
[423045265,1779794545000,1152.23504927,9.04e-05,2]
[423045266,1779794598000,344.010798,0.00027885,120]
[423045267,1779794620000,168.25,9.244e-05,2]
[423045268,1779794642000,172.005399,0.00026849,120]
[423045269,1779794684000,-176.37,0.000107,2]
[423045270,1779794687000,169.399256,0.00026849,120]
[423045274,1779794802000,-49.0069897,0.00010699,2]
[423045273,1779794802000,-300.0,0.00010699,2]
[423045279,1779794845000,259.39,0.00028082,120]
[423045310,1779795032000,-200.0,0.0001634,2]
[423045314,1779795032000,-500.0,0.00016496,2]
[423045313,1779795032000,-500.0,0.00016496,2]
[423045311,1779795032000,-276.1,0.00016438,2]
[423045309,1779795032000,-7256.75014974,0.00016,2]
[423045307,1779795032000,-168.25,0.00015406,2]
[423045316,1779795032000,-500.0,0.00016496,2]
[423045321,1779795032000,-500.0,0.00016496,2]
[423045315,1779795032000,-159.98152234,0.00016496,2]
[423045318,1779795032000,-500.0,0.00016496,2]
[423045319,1779795032000,-500.0,0.00016496,2]
[423045308,1779795032000,-2271.98195886,0.00015807,2]
[423045332,1779795032000,-500.0,0.00016496,2]
[423045325,1779795032000,-500.0,0.00016496,2]
[423045328,1779795032000,-500.0,0.00016496,2]
[423045335,1779795032000,-500.0,0.00016496,2]
[423045317,1779795032000,-500.0,0.00016496,2]
[423045301,1779795032000,-44252.64266621,0.00015,2]
[423045299,1779795032000,-174.85,0.0001419,2]
[423045300,1779795032000,-30813.1288271,0.00015,2]
[423045284,1779795032000,-378.19470933,0.00010699,2]
[423045286,1779795032000,-200.0,0.00010699,2]
[423045285,1779795032000,-163.5,0.00010699,2]
[423045287,1779795032000,-185.86058681,0.000107,2]
[423045288,1779795032000,-13978.86332071,0.000107,2]
[423045289,1779795032000,-3366.73601876,0.000107,2]
[423045290,1779795032000,-385.8722162,0.000107,2]
[423045305,1779795032000,-1517.64,0.000153,2]
[423045291,1779795032000,-868.52832,0.000107,2]
[423045294,1779795032000,-1243.66173485,0.000107,2]
[423045293,1779795032000,-1636.27833148,0.000107,2]
[423045297,1779795032000,-168.25,0.00012325,2]
[423045295,1779795032000,-343.29292514,0.000107,2]
[423045296,1779795032000,-117367.89046064,0.000107,2]
[423045298,1779795032000,-250.0,0.00014137,2]
[423045303,1779795032000,-351.34455134,0.00015,2]
[423045292,1779795032000,-543.04329282,0.000107,2]
[423045348,1779795032000,-500.0,0.00016496,2]